bitfinex/quotes_ETHUSD_20260208
["timestamp","ask_amount","ask_price","bid_price","bid_amount"]
[1770534740577,1.8954534,2075.6,2074.6,1.20605157]
[1770534743529,0.0028,2075.6,2074.7,1.85913335]
[1770534744016,0.0028,2075.6,2074.9,1.85913335]
[1770534745209,0.0028,2075.6,2074.6,1.20605157]
[1770534745414,0.0028,2075.6,2074.8,1.20493541]
[1770534745611,0.0028,2075.6,2074.8,3.06406876]
[1770534746816,0.0028,2075.6,2074.9,1.85913335]
[1770534747505,0.0028,2075.6,2075.0,1.20481927]
[1770534750017,0.0028,2075.6,2075.0,3.06395262]
[1770534750222,0.0028,2075.6,2075.1,1.85913335]
[1770534751329,0.002,2075.4,2075.1,1.85913335]
[1770534751827,0.002,2075.4,2074.9,1.85913335]
[1770534752942,0.002,2075.4,2074.8,1.86013335]
[1770534753106,0.0028,2075.6,2074.8,1.86013335]
[1770534753307,0.002,2075.6,2074.8,1.86013335]
[1770534753503,0.0016,2076.1,2075.2,1.85913335]
[1770534753707,0.0016,2076.1,2075.3,1.20464511]
[1770534754804,0.0016,2076.1,2075.4,1.89505031]
[1770534755118,0.33131189,2076.7,2075.4,1.89505031]
[1770534755119,1e-08,2076.8,2075.8,1.85913335]
[1770534755507,1e-08,2076.8,2076.2,1.89505031]
[1770534755708,1e-08,2076.8,2076.3,1.20406492]
[1770534757720,1e-08,2076.8,2076.1,4.81625969]
[1770534759121,1e-08,2076.8,2076.0,1.20423892]
[1770534759626,2.02584885,2076.8,2075.8,1.20435494]
[1770534760839,2.02584885,2076.8,2075.8,3.28980551]
[1770534761240,2.02584884,2077.2,2075.9,2.08545057]
[1770534762040,2.02584884,2077.1,2076.0,1.20423892]
[1770534762912,2.02584884,2077.1,2076.0,3.28968949]
[1770534764023,2.02584884,2077.1,2076.1,0.001]
[1770534764342,2.02784884,2077.0,2076.1,0.001]
[1770534767044,2.02584884,2076.9,2076.1,0.001]
[1770534769345,2.02584884,2076.8,2076.1,0.001]
[1770534769847,2.02584884,2076.8,2075.9,0.001]
[1770534771747,0.002,2077.0,2076.0,2.08545057]
[1770534771921,2.02584884,2076.9,2076.0,2.08545057]
[1770534774338,2.02584884,2076.9,2076.1,1.20418091]
[1770534776428,2.02784884,2077.0,2076.1,1.20418091]
[1770534776634,2.02784884,2077.0,2076.2,0.001]
[1770534776941,0.002,2076.7,2076.2,0.001]
[1770534778956,2.02784884,2076.7,2076.2,0.001]
[1770534779933,0.002,2076.7,2076.2,0.001]
[1770534782170,0.1024,2077.4,2076.3,2.08545057]
[1770534782336,2.02584884,2077.5,2076.3,2.08545057]
[1770534782957,2.02584884,2077.5,2076.5,2.08545057]
[1770534785459,2.02584884,2077.5,2076.6,3.28934154]
[1770534785664,3.23114522,2077.7,2076.6,3.28934154]
[1770534786276,0.002,2077.7,2076.7,2.01429218]
[1770534787471,0.002,2077.7,2076.9,2.01429218]
[1770534789456,0.002,2077.7,2077.1,2.01429218]
[1770534789870,0.002,2077.5,2077.1,2.01429218]
[1770534790495,0.002,2077.5,2077.0,2.01429218]
[1770534791274,0.002,2077.5,2076.9,1.20370741]
[1770534791482,0.002,2077.5,2076.6,4.81555382]
[1770534791651,0.002,2077.5,2076.7,2.01429218]
[1770534793480,0.002,2077.5,2076.9,2.14115941]
[1770534795381,0.002,2077.5,2077.0,1.20365912]
[1770534796654,0.002,2077.5,2077.1,2.14115941]
[1770534797482,0.002,2077.5,2077.2,1.20354323]
[1770534800184,0.002,2077.5,2076.9,2.14115941]
[1770534802204,0.002,2077.5,2076.9,3.34483365]
[1770534803270,0.002,2077.5,2077.1,0.001]
[1770534804977,0.002,2077.5,2077.1,2.14215941]
[1770534805909,0.002,2077.5,2077.1,0.001]
[1770534806277,0.002,2077.5,2077.1,2.14215941]
[1770534807293,0.002,2077.5,2077.2,1.20354323]
[1770534807499,0.002,2077.5,2077.2,3.34470264]
[1770534808378,0.002,2077.7,2077.2,3.34470264]
[1770534811312,0.002,2077.7,2077.3,2.14115941]
[1770534812803,0.002,2077.7,2077.1,2.14215941]
[1770534813408,0.002,2077.7,2077.3,2.14115941]
[1770534815913,0.002,2077.5,2077.4,1.20342736]
[1770534816315,0.002,2077.5,2077.4,3.46219371]
[1770534818205,1e-08,2077.9,2077.5,2.25876635]
[1770534818606,0.002,2078.1,2077.5,2.25876635]
[1770534820914,0.002,2078.1,2077.6,1.20331151]
[1770534822715,0.002,2078.1,2077.7,3.364]
[1770534822920,0.002,2078.1,2077.7,4.56722608]
[1770534823697,0.29141947,2078.3,2077.8,2.25876635]
[1770534823997,0.002,2078.6,2077.8,2.25876635]
[1770534824396,2.1866623,2078.6,2077.8,2.25876635]
[1770534824718,2.1866623,2078.6,2077.7,4.56722608]
[1770534824911,2.1866623,2078.6,2077.7,6.82599243]
[1770534825094,2.1866623,2078.6,2077.8,2.25876635]
[1770534826699,0.002,2078.6,2077.8,2.25876635]
[1770534827110,0.002,2078.6,2077.9,1.20313778]
[1770534828229,0.002,2078.4,2077.9,1.20313778]
[1770534832402,2.1866623,2078.4,2077.9,1.20313778]
[1770534833109,2.1866623,2078.4,2077.8,1.2031872]
[1770534833311,2.1846623,2078.3,2077.6,1.20431151]
[1770534833637,2.1846623,2078.3,2077.6,3.46307786]
[1770534835135,0.002,2078.4,2077.6,3.46307786]
[1770534835538,0.002,2078.4,2077.7,2.25876635]
[1770534837732,0.002,2078.4,2077.8,1.20319568]
[1770534838737,0.002,2078.4,2077.8,3.46196203]
[1770534840720,2.1866623,2078.4,2077.8,1.20319568]
[1770534841647,2.1866623,2078.4,2078.0,0.001]
[1770534841830,0.002,2078.2,2078.0,0.001]
[1770534842540,0.002,2078.2,2078.0,3.46284623]
[1770534842746,0.002,2078.4,2078.1,2.25876635]
[1770534845519,0.002,2078.4,2078.2,3.46173045]
[1770534845718,0.002,2078.6,2078.3,2.2452346]
[1770534846132,0.002,2078.6,2078.4,3.364]
[1770534847223,0.002,2078.6,2078.2,1.2029641]
[1770534847422,0.002,2078.6,2078.2,3.364]
[1770534847619,0.002,2078.6,2078.2,4.56691854]
[1770534850342,0.002,2078.6,2078.2,1.20291854]
[1770534852542,0.002,2078.6,2078.3,4.56688724]
[1770534853645,0.002,2078.6,2078.3,3.364]
[1770534853851,0.002,2078.6,2078.3,4.56690173]
[1770534854541,0.002,2078.6,2078.3,3.364]
[1770534854732,2.13820415,2078.6,2078.1,1.20298813]
[1770534854931,0.002,2078.6,2078.3,0.001]
[1770534855144,0.002,2078.6,2078.3,1.2038921]
[1770534855339,0.002,2078.4,2078.3,1.2038921]
[1770534855825,0.002,2078.4,2078.3,4.5678921]
[1770534856351,0.002,2078.4,2078.3,3.365]
[1770534856846,0.002,2078.4,2078.3,4.56790622]
[1770534859031,0.002,2078.4,2078.3,6.79879246]
[1770534861126,0.002,2078.6,2078.4,2.23088624]
[1770534861332,2.63,2079.1,2078.5,2.23088624]
[1770534861548,2.13620415,2079.2,2078.5,2.23088624]
[1770534861736,2.13620415,2079.2,2078.6,3.362]
[1770534862857,0.002,2079.5,2078.7,2.23088624]
[1770534863154,0.002,2079.5,2078.4,0.03591696]
[1770534863155,0.002,2079.5,2078.9,1.20255904]
[1770534864152,0.002,2079.5,2079.0,3.362]
[1770534864469,0.002,2079.5,2079.0,5.59288624]
[1770534865454,0.002,2079.5,2079.1,1.20244336]
[1770534865839,0.002,2079.5,2079.0,4.56445843]
[1770534867961,0.002,2079.3,2079.0,4.56445843]
[1770534869255,0.002,2079.3,2079.0,6.79534467]
[1770534870456,0.002,2079.3,2079.0,4.56445843]
[1770534871937,0.002,2079.3,2079.1,3.362]
[1770534872138,0.002,2079.3,2079.0,1.20245843]
[1770534874368,0.002,2079.3,2079.1,4.56442493]
[1770534874743,0.002,2079.3,2079.1,1.20242493]
[1770534876450,0.002,2079.3,2078.8,1.20261689]
[1770534877269,0.002,2079.3,2078.9,3.362]
[1770534878463,0.002,2079.3,2079.0,1.2025012]
[1770534878668,0.002,2079.3,2078.9,6.93155302]
[1770534878857,0.002,2079.3,2078.9,4.56452582]
[1770534879569,0.002,2079.3,2078.9,6.93155302]
[1770534880165,0.002,2079.1,2078.9,6.93155302]
[1770534880347,0.002,2079.1,2078.9,3.56955302]
[1770534880670,0.002,2079.3,2078.9,3.56955302]
[1770534880975,0.002,2079.3,2079.0,3.362]
[1770534881843,2.35269492,2079.2,2078.7,1.20265942]
[1770534882165,2.35269492,2079.2,2078.8,3.22982127]
[1770534885244,2.35269492,2079.2,2078.5,0.001]
[1770534885245,2.35269492,2079.1,2078.5,0.001]
[1770534885450,2.35269492,2079.0,2078.7,3.22982127]
[1770534886166,1.20239724,2079.2,2078.5,0.001]
[1770534886167,2.35269492,2078.8,2078.5,0.001]
[1770534887543,7.7287049,2078.7,2078.4,6.89126521]
[1770534887770,2.35269492,2078.6,2078.4,6.89126521]
[1770534888950,2.35269492,2078.6,2078.4,1.70276234]
[1770534889184,2.35269492,2078.6,2078.3,0.001]
[1770534889351,2.35269492,2078.6,2078.3,3.23082127]
[1770534889983,3.55548539,2078.5,2078.3,3.23082127]
[1770534891297,3.55548539,2078.5,2078.0,0.001]
[1770534891957,2.35269492,2078.4,2078.0,0.001]
[1770534892352,5.37612571,2078.5,2078.0,0.001]
[1770534892353,2.35269492,2078.2,2078.0,0.001]
[1770534895683,2.35269492,2078.2,2077.6,1.20431151]
[1770534896181,3.55566263,2078.2,2077.6,1.20431151]
[1770534896375,2.35269492,2078.1,2077.6,0.001]
[1770534896777,2.35269492,2078.1,2077.4,0.001]
[1770534896778,4.17333524,2077.9,2077.4,0.001]
[1770534896958,6.52603016,2078.1,2077.4,3.57145349]
[1770534897159,6.52603016,2078.1,2077.4,2.3680272]
[1770534897480,2.35269492,2078.1,2077.4,1.20442211]
[1770534897689,3.55569583,2078.2,2077.5,2.3670272]
[1770534897865,3.55555016,2078.4,2077.5,2.40294416]
[1770534899769,3.55555016,2078.4,2077.4,1.20439533]
[1770534899770,6.52603016,2078.1,2077.4,1.20439533]
[1770534900360,4.17333524,2077.5,2077.2,0.001]
[1770534900570,4.17333524,2077.6,2077.2,0.001]
[1770534900775,6.52603016,2077.6,2077.2,0.001]
[1770534900983,2.35269492,2077.3,2076.9,0.001]
[1770534901183,4.17333524,2076.9,2076.5,0.001]
[1770534901876,3.55620567,2077.3,2076.5,0.001]
[1770534902077,4.17333524,2077.1,2076.5,0.001]
[1770534902483,6.52603016,2077.1,2076.5,0.001]
[1770534902976,3.55620567,2077.3,2076.5,0.001]
[1770534903182,7.72944219,2077.5,2076.5,2.3680272]
[1770534903381,3.55610695,2077.5,2076.5,2.3680272]
[1770534903580,2.35269492,2077.7,2076.7,2.3670272]
[1770534903994,1.20331151,2077.6,2076.8,1.20377503]
[1770534904900,3.55598021,2077.7,2076.8,1.20377503]
[1770534905193,3.55598021,2077.7,2077.4,0.001]
[1770534905393,3.55598021,2077.7,2076.8,1.20377503]
[1770534906098,3.55598021,2077.7,2077.1,0.001]
[1770534906873,6.18598021,2077.7,2077.1,0.001]
[1770534911375,4.81285109,2077.8,2077.1,2.26235762]
[1770534911376,1.20319568,2077.8,2077.1,2.26235762]
[1770534911576,3.48773633,2077.8,2077.1,0.001]
[1770534913515,1.20331151,2077.6,2077.1,0.001]
[1770534914018,3.51564668,2077.6,2077.1,0.001]
[1770534914780,2.63,2078.0,2077.1,2.33306574]
[1770534914994,2.31233517,2078.1,2077.1,2.33306574]
[1770534916023,2.31233517,2077.9,2077.1,2.33306574]
[1770534916177,2.31233517,2077.9,2077.1,0.001]
[1770534916582,2.31233517,2077.9,2077.1,1.20459516]
[1770534916932,2.31233517,2077.9,2077.1,0.001]
[1770534918121,3.51553085,2077.8,2077.1,0.001]
[1770534918791,6.14553085,2077.8,2077.1,0.001]
[1770534921391,2.31233517,2077.7,2077.1,0.001]
[1770534922611,3.51564668,2077.6,2077.1,0.001]
[1770534923420,4.18013952,2077.4,2077.1,0.001]
[1770534924105,4.18013952,2077.4,2077.0,0.001]
[1770534925827,5.38345103,2077.6,2077.0,2.33306574]
[1770534926126,4.18013952,2077.6,2077.0,2.33306574]
[1770534926315,5.38345891,2077.6,2077.0,2.33306574]
[1770534926907,5.38345891,2077.6,2077.0,3.53672394]
[1770534927111,5.38345891,2077.6,2077.0,2.33306574]
[1770534927816,4.18013952,2077.6,2077.1,2.33206574]
[1770534928318,2.63,2077.8,2077.1,2.33206574]
[1770534928723,2.63,2077.8,2077.3,2.33206574]
[1770534931621,2.63,2077.8,2077.3,1.20445485]
[1770534931825,2.63,2077.8,2077.4,2.33206574]
[1770534932016,2.63,2077.8,2077.3,0.001]
[1770534932017,0.002,2077.6,2077.3,0.001]
[1770534937353,0.002,2077.6,2077.0,2.19511095]
[1770534937533,4.18013952,2077.5,2077.0,0.001]
[1770534937837,4.18013952,2077.5,2077.0,2.19511095]
[1770534939720,0.002,2077.6,2077.0,3.39875054]
[1770534940046,1.20534558,2077.6,2077.0,2.19511095]
[1770534940216,4.18013952,2077.5,2077.0,2.19511095]
[1770534940816,1.20534558,2077.6,2077.0,2.19511095]
[1770534942706,0.002,2077.6,2077.1,2.19411095]
[1770534945312,0.002,2077.6,2077.0,0.001]
[1770534945512,4.17975341,2077.5,2077.0,0.001]
[1770534945940,6.43074415,2077.5,2077.0,0.001]
[1770534946248,6.43074415,2077.5,2077.2,0.001]
[1770534946445,0.002,2077.4,2077.0,0.001]
[1770534946749,0.002,2077.4,2077.0,2.19511095]
[1770534951463,0.002,2077.4,2077.0,0.001]
[1770534951645,4.17975341,2077.3,2076.8,0.001]
[1770534953566,4.17975341,2077.3,2076.8,1.20477427]
[1770534954068,4.17975341,2077.3,2076.8,3.39888522]
[1770534955165,0.002,2077.4,2076.9,2.19411095]
[1770534956438,0.002,2077.6,2077.0,2.19411095]
[1770534958175,4.18175341,2077.6,2077.0,2.19411095]
[1770534959678,0.002,2077.6,2077.0,1.20364361]
[1770534959883,0.002,2077.6,2077.2,0.001]
[1770534960381,0.002,2077.4,2077.2,0.001]
[1770534961084,0.002,2077.4,2077.2,2.19511095]
[1770534962587,0.002,2077.4,2077.0,0.001]
[1770534962588,4.88299074,2077.4,2077.0,0.001]
[1770534963287,2.632,2077.4,2077.0,0.001]
[1770534964478,2.632,2077.4,2077.1,2.19411095]
[1770534966689,2.632,2077.4,2077.0,0.001]
[1770534967073,3.83543615,2077.4,2077.0,0.001]
[1770534967288,6.17822375,2077.4,2077.0,0.001]
[1770534967485,6.17822375,2077.4,2076.8,0.001]
[1770534969797,0.002,2077.4,2076.9,2.22725567]
[1770534970090,0.002,2077.6,2077.0,2.22725567]
[1770534971094,0.002,2077.6,2077.1,2.22725567]
[1770534972296,0.002,2077.2,2077.1,2.22725567]
[1770534972476,0.002,2077.6,2077.1,2.22725567]
[1770534972678,0.002,2077.4,2077.1,2.22725567]
[1770534973285,0.002,2077.4,2077.3,2.20637214]
[1770534973983,0.002,2077.6,2077.3,2.20637214]
[1770534974182,0.002,2077.9,2077.3,2.20637214]
[1770534974390,0.004,2077.9,2077.3,2.20637214]
[1770534975489,0.004,2077.9,2077.5,2.20637214]
[1770534977497,0.004,2077.9,2077.5,3.40969034]
[1770534978307,0.002,2077.8,2077.0,0.001]
[1770534978608,0.002,2077.8,2077.0,1.20462918]
[1770534978609,0.002,2077.7,2077.0,1.20462918]
[1770534978777,0.002,2077.7,2077.0,3.41100132]
[1770534979417,1.20525359,2077.7,2077.0,3.41100132]
[1770534979603,1.20525359,2077.7,2077.0,2.20737214]
[1770534980604,1.20525359,2077.7,2077.0,3.41102264]
[1770534983992,0.002,2077.7,2077.1,2.20637214]
[1770534984395,2.63,2077.6,2077.1,2.20637214]
[1770534984591,2.63,2077.6,2077.2,0.001]
[1770534984795,2.63,2077.6,2077.2,2.20737214]
[1770534984997,2.632,2077.6,2077.2,3.41088416]
[1770534986612,2.49200424,2077.6,2077.4,2.20637214]
[1770534986790,0.002,2077.8,2077.4,2.20637214]
[1770534986987,0.004,2077.8,2077.4,2.20637214]
[1770534987605,0.004,2077.8,2077.5,3.40974157]
[1770534988713,0.002,2077.8,2077.6,2.20637214]
[1770534993017,0.002,2077.8,2077.6,3.40964205]
[1770534993826,0.002,2078.1,2077.8,2.20637214]
[1770534994003,0.002,2078.0,2077.8,2.20637214]
[1770534994324,0.002,2078.0,2077.6,3.40964205]
[1770534994497,0.002,2078.0,2077.7,2.20637214]
[1770534995200,0.002,2078.0,2077.8,1.20319568]
[1770534996906,0.002,2078.0,2077.7,3.40958134]
[1770534997520,0.002,2077.8,2077.7,3.40958134]
[1770534999213,0.002,2078.0,2077.8,2.2924909]
[1770534999919,0.002,2078.0,2077.9,3.49562868]
[1770535000325,0.002,2078.3,2077.9,3.49562868]
[1770535000504,0.002,2078.2,2077.9,3.49562868]
[1770535000824,0.002,2078.2,2078.0,2.2924909]
[1770535001009,0.002,2078.2,2077.8,4.81273122]
[1770535001010,0.002,2078.2,2077.8,1.20315421]
[1770535001802,0.002,2078.2,2078.0,3.49557078]
[1770535002005,0.002,2078.2,2078.0,1.20307988]
[1770535003511,0.002,2078.2,2077.9,1.20308069]
[1770535003710,0.002,2078.2,2077.9,1.20313235]
[1770535003906,0.002,2078.2,2077.8,1.20316192]
[1770535004122,6.43979217,2078.2,2077.6,1.20328783]
[1770535004317,6.43979217,2078.2,2077.5,2.2924909]
[1770535004518,6.43979217,2078.2,2077.6,1.20330743]
[1770535004722,6.43979217,2078.2,2077.5,7.10591193]
[1770535004723,2.26341753,2078.2,2077.7,1.20325038]
[1770535004999,2.26341753,2078.2,2077.6,1.20327156]
[1770535005204,2.26341753,2078.2,2077.5,7.10591193]
[1770535005514,2.26341753,2078.2,2077.7,1.20324311]
[1770535006224,2.26341753,2078.2,2077.6,1.20331151]
[1770535006419,2.26341753,2078.2,2077.6,3.49580241]
[1770535006635,0.002,2078.2,2077.6,3.49580241]
[1770535009836,0.002,2078.2,2077.7,2.2924909]
[1770535010912,0.002,2078.2,2077.8,0.001]
[1770535011145,0.002,2078.2,2077.8,2.2934909]
[1770535011435,0.002,2078.0,2077.8,2.2934909]
[1770535012036,0.002,2078.0,2077.8,3.49667234]
[1770535012337,0.002,2078.2,2077.9,2.2924909]
[1770535012522,0.002,2078.1,2077.9,2.2924909]
[1770535013423,0.002,2078.2,2077.9,2.2924909]
[1770535013622,0.004,2078.2,2077.9,2.2924909]
[1770535015641,0.004,2078.2,2078.0,3.49557078]
[1770535016037,0.001,2078.1,2077.7,1.20321266]
[1770535016926,0.001,2078.1,2077.8,1.20315192]
[1770535018114,0.001,2078.1,2077.8,3.49568658]
[1770535018333,0.001,2078.1,2077.9,2.2924909]
[1770535020030,0.001,2078.1,2077.7,2.2924909]
[1770535020835,0.002,2078.2,2077.9,4.17603565]
[1770535021039,0.002,2078.2,2078.0,2.2924909]
[1770535022346,0.003,2078.2,2078.1,1.20302199]
[1770535025468,0.0008,2078.3,2078.0,1.20304045]
[1770535025625,0.002,2078.2,2078.0,1.20304045]
[1770535026377,0.002,2078.2,2078.0,3.54113093]
[1770535030554,0.002,2078.2,2077.8,3.54228616]
[1770535033566,2.2809326,2078.2,2077.8,1.20419568]
[1770535035152,2.2809326,2078.2,2077.8,0.001]
[1770535036568,0.002,2078.2,2077.8,2.33876178]
[1770535036870,0.0008,2078.3,2077.8,2.33876178]
[1770535037173,0.0008,2078.3,2077.9,1.20313778]
[1770535038053,2.2797326,2078.3,2077.9,1.20313778]
[1770535038664,2.2797326,2078.3,2078.0,0.001]
[1770535038847,0.002,2078.1,2078.0,0.001]
[1770535040159,2.2809326,2078.1,2078.0,0.001]
[1770535040559,2.2809326,2078.1,2077.8,0.001]
[1770535043578,0.002,2078.1,2077.8,0.001]
[1770535043744,0.002,2078.1,2077.8,2.33876178]
[1770535043950,0.002,2078.1,2077.8,0.001]
[1770535044757,0.002,2078.3,2077.9,4.17687425]
[1770535045051,0.002,2078.5,2078.0,2.37626034]
[1770535045246,0.002,2078.5,2078.0,1.24153977]
[1770535045471,2.2809326,2078.5,2078.0,1.24156856]
[1770535045872,0.002,2078.5,2078.0,1.24156856]
[1770535046269,0.002,2078.5,2078.1,4.17687425]
[1770535046478,0.002,2078.9,2078.3,4.21537281]
[1770535046886,0.002,2078.9,2078.3,0.03849856]
[1770535047389,0.002,2078.9,2078.4,1.20284834]
[1770535047889,0.002,2078.9,2078.5,2.33776178]
[1770535049484,0.002,2078.9,2078.6,1.2027326]
[1770535049686,0.002,2078.9,2078.6,3.54049438]
[1770535049888,2.2789326,2079.5,2078.6,3.57899294]
[1770535050057,2.2789326,2079.5,2078.7,2.33776178]
[1770535050254,2.2789326,2079.5,2078.7,2.33203179]
[1770535050689,2.2789326,2079.6,2078.7,2.33203179]
[1770535051305,2.2789326,2079.6,2078.8,1.20261689]
[1770535051506,2.2789326,2079.6,2078.9,2.37626034]
[1770535051806,0.0008,2079.7,2078.9,2.34598944]
[1770535052006,2.2797326,2079.7,2078.9,2.34598944]
[1770535052312,2.2797326,2079.7,2079.2,0.03849856]
[1770535052480,0.0008,2079.7,2079.0,2.33776178]
[1770535052804,2.2797326,2079.7,2078.9,0.00822766]
[1770535053001,0.002,2079.4,2078.9,0.00822766]
[1770535053206,0.002,2079.4,2079.2,0.03849856]
[1770535053400,0.002,2079.4,2079.1,4.74782367]
[1770535053601,0.002,2079.4,2079.3,1.2023277]
[1770535053909,0.002,2079.4,2079.3,0.95104109]
[1770535054695,0.002,2079.4,2079.3,0.94531109]
[1770535054883,0.002,2079.4,2079.2,1.24084404]
[1770535058512,0.0008,2079.7,2079.2,1.24084404]
[1770535058817,2.31423664,2079.3,2078.6,2.38780306]
[1770535059007,0.0008,2079.7,2079.4,0.03849856]
[1770535059008,2.31423664,2079.5,2079.4,0.03849856]
[1770535059317,1.48507055,2079.7,2079.4,0.03849856]
[1770535059495,1.48507055,2079.7,2079.2,0.03849856]
[1770535059816,5.75214581,2079.8,2079.5,0.03849856]
[1770535060015,5.75214581,2079.8,2079.4,0.03849856]
[1770535060219,8.06638245,2079.8,2079.2,0.03849856]
[1770535060394,2.31423664,2079.7,2079.4,0.03849856]
[1770535061930,2.31423664,2079.7,2079.2,0.03849856]
[1770535062294,2.31423664,2079.7,2079.3,0.03849856]
[1770535062627,2.31423664,2079.7,2079.1,1.7e-07]
[1770535062822,2.31423664,2079.7,2079.2,0.03849856]
[1770535063005,2.31423664,2079.7,2079.1,1.7e-07]
[1770535063206,2.31423664,2079.7,2079.2,0.03849856]
[1770535063515,2.31423664,2079.7,2079.1,1.7e-07]
[1770535063697,2.31423664,2079.7,2079.2,0.03849856]
[1770535063899,2.31423664,2079.7,2079.1,1.7e-07]
[1770535064098,2.31423664,2079.7,2079.2,0.03849856]
[1770535064301,2.31423664,2079.7,2079.3,0.03849856]
[1770535064920,2.31423664,2079.7,2079.1,4.2e-07]
[1770535065110,8.06638245,2079.8,2079.3,0.03849856]
[1770535065717,8.06638245,2079.8,2079.4,0.001]
[1770535065911,0.002,2079.5,2079.4,0.001]
[1770535066316,0.002,2079.5,2079.4,0.03849856]
[1770535066922,0.002,2079.5,2079.2,0.03849856]
[1770535067116,0.002,2079.5,2079.4,0.03849856]
[1770535067429,0.002,2079.5,2079.2,0.03849856]
[1770535067604,0.002,2079.5,2079.4,0.03849856]
[1770535067926,0.002,2079.5,2079.2,0.03849856]
[1770535068118,0.002,2079.5,2079.4,0.03849856]
[1770535068317,0.002,2079.5,2079.2,0.03849856]
[1770535068526,0.002,2079.5,2079.4,0.03849856]
[1770535068822,0.002,2079.5,2079.2,0.03849856]
[1770535069030,0.002,2079.5,2079.4,0.03849856]
[1770535069197,0.002,2079.5,2079.2,0.03849856]
[1770535069404,0.002,2079.5,2079.4,0.03849856]
[1770535069602,5.00406587,2080.0,2079.2,2.38780306]
[1770535069814,6.96231562,2080.0,2079.3,2.3493045]
[1770535070005,6.96231562,2080.0,2079.5,0.03849856]
[1770535070206,6.96231562,2080.0,2079.3,2.3493045]
[1770535070432,6.96231562,2080.0,2079.5,0.03849856]
[1770535070733,6.99895978,2080.0,2079.5,0.03849856]
[1770535071421,1.99489391,2079.9,2079.5,0.03849856]
[1770535072931,1.99489391,2079.9,2079.2,0.00048128]
[1770535073136,2.06690547,2079.8,2079.2,0.00048128]
[1770535073509,4.17027792,2079.5,2079.2,0.00048128]
[1770535074931,4.17027792,2079.6,2079.2,0.00048128]
[1770535076027,0.10472801,2079.6,2079.2,0.00048128]
[1770535076238,4.17027792,2079.6,2079.2,0.00048128]
[1770535076536,2.31423664,2080.0,2079.2,0.00048128]
[1770535076835,4.17027792,2079.6,2079.2,0.00048128]
[1770535077731,4.17027792,2079.4,2078.8,3.55269184]
[1770535078036,4.17027792,2079.4,2078.9,2.38780306]
[1770535079620,4.17227792,2079.4,2078.9,2.38780306]
[1770535079838,4.17227792,2079.4,2079.1,0.001]
[1770535080018,0.002,2079.4,2079.1,0.001]
[1770535080618,0.002,2079.4,2079.1,2.3503045]
[1770535080931,0.002,2079.4,2079.1,0.001]
[1770535082236,4.17227792,2079.4,2078.8,0.0008]
[1770535082438,2.31423664,2079.3,2078.9,0.0008]
[1770535082948,2.31423664,2079.3,2078.4,2.3493045]
[1770535082949,2.31423664,2079.1,2078.3,3.55320941]
[1770535083241,2.31423664,2079.1,2078.4,2.38780306]
[1770535084035,0.002,2079.4,2078.7,0.03849856]
[1770535084337,0.002,2079.4,2079.0,0.03849856]
[1770535084839,0.002,2079.4,2079.0,2.38780306]
[1770535088034,0.002,2079.4,2079.3,0.03849856]
[1770535088232,0.34757875,2080.4,2079.3,0.03849856]
[1770535088233,4.27267792,2080.1,2079.3,0.03849856]
[1770535088547,5.47454572,2080.1,2079.3,2.90688292]
[1770535089236,0.1024,2080.1,2079.3,2.90688292]
[1770535089542,0.1024,2080.3,2079.3,2.90688292]
[1770535089743,4.27049274,2080.3,2079.3,2.90688292]
[1770535090945,5.47224377,2080.3,2079.3,2.90688292]
[1770535092051,5.47224377,2080.3,2079.5,2.86838436]
[1770535092245,0.002,2079.9,2079.5,2.86838436]
[1770535098650,3.01377429,2079.9,2079.4,0.001]
[1770535098856,7.17986703,2079.8,2079.1,2.93757241]
[1770535099743,4.16809274,2079.8,2079.1,2.93757241]
[1770535100460,7.17986703,2079.8,2079.1,2.93757241]
[1770535101232,4.16809274,2079.8,2079.1,2.93757241]
[1770535101439,0.002,2079.9,2079.1,2.93757241]
[1770535104557,0.002,2079.9,2079.3,2.93657241]
[1770535104862,0.002,2079.9,2079.3,2.93757241]
[1770535105058,0.002,2079.7,2079.3,2.93757241]
[1770535107662,0.002,2079.7,2079.6,2.93657241]
[1770535107862,0.002,2080.1,2079.6,2.93657241]
[1770535108040,0.002,2080.0,2079.6,2.93657241]
[1770535108461,0.002,2080.1,2079.6,2.93657241]
[1770535108661,0.002,2080.0,2079.6,2.93657241]
[1770535111448,0.002,2080.0,2079.4,2.93657241]
[1770535111968,0.002,2080.1,2079.4,2.93657241]
[1770535112166,0.002,2079.9,2079.4,2.93657241]
[1770535113067,0.002,2079.9,2079.5,2.97507097]
[1770535114171,0.002,2080.1,2079.5,2.97507097]
[1770535114479,0.002,2080.0,2079.5,2.97507097]
[1770535116652,0.002,2080.0,2079.6,0.03849856]
[1770535116869,0.002,2080.0,2079.6,3.24053122]
[1770535117655,0.002,2079.8,2079.6,3.24053122]
[1770535118048,0.004,2079.8,2079.6,0.03849856]
[1770535118253,0.004,2079.8,2079.4,3.20203266]
[1770535118780,0.004,2079.8,2079.3,3.20303266]
[1770535118972,0.004,2079.8,2079.5,3.24053122]
[1770535120379,0.002,2079.8,2079.5,3.24053122]
[1770535120672,0.002,2079.7,2079.5,3.24053122]
[1770535121380,0.002,2079.7,2079.5,0.03849856]
[1770535122573,0.002,2079.7,2079.4,3.20203266]
[1770535123080,0.002,2079.7,2079.6,3.20203266]
[1770535123277,0.002,2079.7,2079.6,3.19630266]
[1770535124878,0.002,2079.7,2079.5,0.03849856]
[1770535125078,0.002,2079.7,2079.5,3.24053122]
[1770535130393,3.03847466,2079.6,2079.1,0.001]
[1770535130696,3.03947466,2079.6,2079.1,0.001]
[1770535132197,3.03947466,2079.6,2079.5,0.001]
[1770535132398,4.24068673,2079.5,2078.7,3.20203266]
[1770535132780,0.001,2079.4,2078.7,3.20203266]
[1770535133307,3.03947466,2079.4,2078.7,3.20203266]